[Event "*** SCC Grand Prix: Titled Tuesday Blitz"]
[Site "Chess.com"]
[Date "2020.07.14"]
[Round "5"]
[White "Parhamov"]
[Black "fighter2jz"]
[Result "1-0"]
[WhiteElo "3021"]
[BlackElo "2814"]
[TimeControl "180+1"]
[EndTime "10:55:37 PDT"]
[Termination "Parhamov won on time"]

1. e4 {[%clk 0:03:00.9]} 1... c5 {[%clk 0:02:59.4]} 2. Nf3 {[%clk 0:03:01.2]}
2... d6 {[%clk 0:02:59.5]} 3. d4 {[%clk 0:03:01]} 3... cxd4 {[%clk 0:03:00.4]}
4. Nxd4 {[%clk 0:03:01.9]} 4... Nf6 {[%clk 0:03:00.2]} 5. Nc3 {[%clk 0:03:01.4]}
5... a6 {[%clk 0:02:59.7]} 6. h3 {[%clk 0:03:01.2]} 6... e5 {[%clk 0:02:55.9]}
7. Nde2 {[%clk 0:02:57.2]} 7... h5 {[%clk 0:02:55.3]} 8. g3 {[%clk 0:02:39.2]}
8... Be6 {[%clk 0:02:54.5]} 9. Bg2 {[%clk 0:02:39.1]} 9... Nbd7 {[%clk
0:02:54.5]} 10. a4 {[%clk 0:02:38.7]} 10... Rc8 {[%clk 0:02:53.9]} 11. O-O
{[%clk 0:02:35.7]} 11... Be7 {[%clk 0:02:50.9]} 12. Be3 {[%clk 0:02:34.8]} 12...
Nb6 {[%clk 0:02:25.7]} 13. b3 {[%clk 0:02:32.5]} 13... d5 {[%clk 0:02:22.4]} 14.
Bxb6 {[%clk 0:02:14.4]} 14... Qxb6 {[%clk 0:02:22.2]} 15. Nxd5 {[%clk
0:02:15.2]} 15... Nxd5 {[%clk 0:02:22.4]} 16. exd5 {[%clk 0:02:14.7]} 16... Bd7
{[%clk 0:02:22.1]} 17. a5 {[%clk 0:02:13.4]} 17... Qd6 {[%clk 0:02:21]} 18. c4
{[%clk 0:02:11.9]} 18... h4 {[%clk 0:02:15.4]} 19. g4 {[%clk 0:02:11.2]} 19...
f5 {[%clk 0:02:13]} 20. gxf5 {[%clk 0:02:10.8]} 20... Bxf5 {[%clk 0:02:10.2]}
21. Nc3 {[%clk 0:02:10.1]} 21... O-O {[%clk 0:01:44.3]} 22. Kh1 {[%clk
0:02:07.5]} 22... e4 {[%clk 0:01:26]} 23. Bxe4 {[%clk 0:01:47.4]} 23... Qe5
{[%clk 0:00:49.2]} 24. Qd3 {[%clk 0:01:28.9]} 24... Bb4 {[%clk 0:00:14.2]} 25.
Bxf5 {[%clk 0:01:25.6]} 25... Rxf5 {[%clk 0:00:14.4]} 26. Ne4 {[%clk 0:01:23.1]}
26... Rcf8 {[%clk 0:00:13.4]} 27. f3 {[%clk 0:01:02.1]} 27... Bd6 {[%clk
0:00:05.5]} 28. Ra2 {[%clk 0:00:56.6]} 28... Bb8 {[%clk 0:00:01.4]} 29. Rg2
{[%clk 0:00:55.5]} 29... Rf4 {[%clk 0:00:01.9]} 30. d6 {[%clk 0:00:52]} 1-0

[Event "*** SCC Grand Prix: Titled Tuesday Blitz"]
[Site "Chess.com"]
[Date "2020.07.14"]
[Round "5"]
[White "okriak"]
[Black "Ucitelot"]
[Result "1-0"]
[WhiteElo "2703"]
[BlackElo "2504"]
[TimeControl "180+1"]
[EndTime "10:55:42 PDT"]
[Termination "okriak won by resignation"]

1. Nf3 {[%clk 0:03:00.9]} 1... Nf6 {[%clk 0:02:54.9]} 2. c4 {[%clk 0:03:00.6]}
2... c5 {[%clk 0:02:54.5]} 3. Nc3 {[%clk 0:03:00.6]} 3... g6 {[%clk 0:02:54.6]}
4. e4 {[%clk 0:02:59.4]} 4... Nc6 {[%clk 0:02:53.7]} 5. d4 {[%clk 0:02:59.7]}
5... cxd4 {[%clk 0:02:53.4]} 6. Nxd4 {[%clk 0:03:00.3]} 6... d6 {[%clk
0:02:53.7]} 7. Be2 {[%clk 0:02:59.8]} 7... Bg7 {[%clk 0:02:53.5]} 8. Be3 {[%clk
0:02:59.4]} 8... O-O {[%clk 0:02:53.6]} 9. O-O {[%clk 0:02:59]} 9... a5 {[%clk
0:02:50.4]} 10. Ndb5 {[%clk 0:02:57.1]} 10... a4 {[%clk 0:02:48.6]} 11. Rc1
{[%clk 0:02:55.7]} 11... Qa5 {[%clk 0:02:47.9]} 12. f3 {[%clk 0:02:53.2]} 12...
Be6 {[%clk 0:02:47.4]} 13. Nd5 {[%clk 0:02:49.4]} 13... Bxd5 {[%clk 0:02:31]}
14. cxd5 {[%clk 0:02:49.2]} 14... Ne5 {[%clk 0:02:30.7]} 15. Rc7 {[%clk
0:02:36.1]} 15... Ned7 {[%clk 0:02:29.3]} 16. Rxb7 {[%clk 0:02:24.8]} 16... Rfb8
{[%clk 0:02:27.2]} 17. Bd2 {[%clk 0:01:40.8]} 17... Qa6 {[%clk 0:02:24.5]} 18.
Rxb8+ {[%clk 0:01:40.1]} 18... Rxb8 {[%clk 0:02:24.1]} 19. Nc3 {[%clk
0:01:39.9]} 19... Qa7+ {[%clk 0:02:21.4]} 20. Kh1 {[%clk 0:01:35.8]} 20... Rxb2
{[%clk 0:02:12.2]} 21. Bc1 {[%clk 0:01:34.3]} 21... Rb4 {[%clk 0:02:02.1]} 22.
Ba3 {[%clk 0:01:27]} 22... Rd4 {[%clk 0:02:01.4]} 23. Qc1 {[%clk 0:01:13.9]}
23... Qa5 {[%clk 0:01:53.6]} 24. Qb2 {[%clk 0:00:45.3]} 24... Ne8 {[%clk
0:01:51.3]} 25. Rc1 {[%clk 0:00:28.4]} 25... Qb6 {[%clk 0:01:34.4]} 26. Qxb6
{[%clk 0:00:26.3]} 26... Nxb6 {[%clk 0:01:34.1]} 27. Rd1 {[%clk 0:00:22.4]}
27... Nc7 {[%clk 0:01:25.2]} 28. Rxd4 {[%clk 0:00:21.5]} 28... Bxd4 {[%clk
0:01:24.6]} 29. Nb5 {[%clk 0:00:22.2]} 29... Nxb5 {[%clk 0:01:18.1]} 30. Bxb5
{[%clk 0:00:22.8]} 30... Bc5 {[%clk 0:01:09.7]} 31. Bb2 {[%clk 0:00:22.4]} 31...
a3 {[%clk 0:01:09.5]} 32. Bc3 {[%clk 0:00:22.4]} 32... Kf8 {[%clk 0:01:02.3]}
33. g3 {[%clk 0:00:21.9]} 33... e6 {[%clk 0:01:02.2]} 34. dxe6 {[%clk
0:00:21.6]} 34... fxe6 {[%clk 0:01:02.2]} 35. Kg2 {[%clk 0:00:21.9]} 35... Ke7
{[%clk 0:01:01.9]} 36. Kf1 {[%clk 0:00:21.6]} 36... d5 {[%clk 0:01:02.1]} 37.
exd5 {[%clk 0:00:21.2]} 37... Nxd5 {[%clk 0:01:01.5]} 38. Bd2 {[%clk 0:00:21.5]}
38... Ne3+ {[%clk 0:00:59.6]} 39. Ke2 {[%clk 0:00:20.3]} 39... Nc2 {[%clk
0:00:59.3]} 40. Kd3 {[%clk 0:00:19.9]} 40... Nb4+ {[%clk 0:00:59.2]} 41. Kc4
{[%clk 0:00:20]} 41... Nxa2 {[%clk 0:00:59.3]} 42. Kxc5 {[%clk 0:00:20]} 1-0

[Event "*** SCC Grand Prix: Titled Tuesday Blitz"]
[Site "Chess.com"]
[Date "2020.07.14"]
[Round "5"]
[White "benko_008"]
[Black "fabianvivasz"]
[Result "1-0"]
[WhiteElo "2445"]
[BlackElo "2248"]
[TimeControl "180+1"]
[EndTime "10:55:42 PDT"]
[Termination "benko_008 won on time"]

1. Nf3 {[%clk 0:03:00.9]} 1... c5 {[%clk 0:02:58.6]} 2. c4 {[%clk 0:03:00]} 2...
Nf6 {[%clk 0:02:56.9]} 3. Nc3 {[%clk 0:02:58.7]} 3... d5 {[%clk 0:02:56.9]} 4.
cxd5 {[%clk 0:02:55.1]} 4... Nxd5 {[%clk 0:02:57.8]} 5. d4 {[%clk 0:02:55.5]}
5... Nxc3 {[%clk 0:02:48.8]} 6. bxc3 {[%clk 0:02:54.7]} 6... g6 {[%clk
0:02:49.3]} 7. e4 {[%clk 0:02:47]} 7... Bg7 {[%clk 0:02:49.1]} 8. Be3 {[%clk
0:02:46.2]} 8... Qa5 {[%clk 0:02:48.2]} 9. Qd2 {[%clk 0:02:44.8]} 9... Nc6
{[%clk 0:02:45.8]} 10. Rb1 {[%clk 0:02:31.9]} 10... a6 {[%clk 0:02:23.6]} 11.
Rc1 {[%clk 0:02:27.3]} 11... O-O {[%clk 0:01:58.4]} 12. d5 {[%clk 0:02:20.4]}
12... Rd8 {[%clk 0:01:58]} 13. h3 {[%clk 0:02:01.1]} 13... e6 {[%clk 0:01:27.9]}
14. Be2 {[%clk 0:01:27.3]} 14... exd5 {[%clk 0:01:02.7]} 15. exd5 {[%clk
0:01:28.2]} 15... Bf5 {[%clk 0:00:59.1]} 16. O-O {[%clk 0:01:24.5]} 16... c4
{[%clk 0:00:33.6]} 17. Bxc4 {[%clk 0:01:20.9]} 17... Be4 {[%clk 0:00:33.7]} 18.
Rfd1 {[%clk 0:01:08.7]} 18... b5 {[%clk 0:00:14.2]} 19. Bb3 {[%clk 0:01:05.1]}
19... Bxf3 {[%clk 0:00:10.6]} 20. gxf3 {[%clk 0:01:06]} 20... Ne5 {[%clk
0:00:10.6]} 21. Qe2 {[%clk 0:01:05.6]} 21... Rac8 {[%clk 0:00:09.9]} 22. Bd4
{[%clk 0:01:03]} 22... Nc4 {[%clk 0:00:08.7]} 23. Bxg7 {[%clk 0:01:01.9]} 23...
Kxg7 {[%clk 0:00:08.4]} 24. Rd4 {[%clk 0:01:01.1]} 24... Nb6 {[%clk 0:00:07.9]}
25. d6 {[%clk 0:00:56.5]} 25... Rxc3 {[%clk 0:00:07.4]} 26. Qe5+ {[%clk
0:00:56.5]} 26... Kg8 {[%clk 0:00:07.3]} 27. Re1 {[%clk 0:00:55.1]} 27... Rcc8
{[%clk 0:00:06.3]} 28. Bxf7+ {[%clk 0:00:45]} 28... Kxf7 {[%clk 0:00:05.8]} 29.
Rf4+ {[%clk 0:00:44.5]} 29... Kg8 {[%clk 0:00:05.5]} 30. Qe6+ {[%clk 0:00:44.8]}
30... Kh8 {[%clk 0:00:05.8]} 31. Qf6+ {[%clk 0:00:44.7]} 31... Kg8 {[%clk
0:00:06.3]} 32. Re7 {[%clk 0:00:43.6]} 1-0

[Event "*** SCC Grand Prix: Titled Tuesday Blitz"]
[Site "Chess.com"]
[Date "2020.07.14"]
[Round "5"]
[White "attack2mateU"]
[Black "onnoelgersma"]
[Result "1-0"]
[WhiteElo "2653"]
[BlackElo "2424"]
[TimeControl "180+1"]
[EndTime "10:55:43 PDT"]
[Termination "attack2mateU won on time"]

1. e4 {[%clk 0:03:00.9]} 1... c6 {[%clk 0:02:59.9]} 2. Nc3 {[%clk 0:03:00]} 2...
d5 {[%clk 0:03:00.2]} 3. Nf3 {[%clk 0:03:00.9]} 3... dxe4 {[%clk 0:03:00.6]} 4.
Nxe4 {[%clk 0:03:01.5]} 4... Nf6 {[%clk 0:03:01.5]} 5. Qe2 {[%clk 0:03:01]} 5...
Nxe4 {[%clk 0:02:52.3]} 6. Qxe4 {[%clk 0:03:01.9]} 6... Nd7 {[%clk 0:02:52.8]}
7. Bc4 {[%clk 0:03:00.6]} 7... Nf6 {[%clk 0:02:53.4]} 8. Ne5 {[%clk 0:03:00.4]}
8... e6 {[%clk 0:02:53.9]} 9. Qe2 {[%clk 0:03:00.2]} 9... Qc7 {[%clk 0:02:53.9]}
10. O-O {[%clk 0:02:58.7]} 10... Bd6 {[%clk 0:02:54]} 11. Re1 {[%clk 0:02:57]}
11... O-O {[%clk 0:02:50.5]} 12. b3 {[%clk 0:02:55.8]} 12... b5 {[%clk
0:02:50.7]} 13. Bd3 {[%clk 0:02:55.4]} 13... Bb7 {[%clk 0:02:48.4]} 14. Bb2
{[%clk 0:02:55.5]} 14... c5 {[%clk 0:02:48.3]} 15. Bxb5 {[%clk 0:02:46.6]} 15...
Nd5 {[%clk 0:02:34.9]} 16. Qg4 {[%clk 0:01:37.4]} 16... f5 {[%clk 0:02:06.1]}
17. Qg3 {[%clk 0:01:37.2]} 17... Nf6 {[%clk 0:01:15.3]} 18. d3 {[%clk
0:01:30.9]} 18... Kh8 {[%clk 0:00:42.2]} 19. Bc4 {[%clk 0:01:21]} 19... Nd5
{[%clk 0:00:41.1]} 20. Re2 {[%clk 0:01:14.6]} 20... f4 {[%clk 0:00:36.3]} 21.
Qh3 {[%clk 0:01:13.1]} 21... Rf5 {[%clk 0:00:25.3]} 22. Nf3 {[%clk 0:00:38.3]}
22... Qd7 {[%clk 0:00:20.4]} 23. Rae1 {[%clk 0:00:37.1]} 23... Re8 {[%clk
0:00:19.5]} 24. Qxf5 {[%clk 0:00:25.8]} 24... Ne3 {[%clk 0:00:06.4]} 25. Qh5
{[%clk 0:00:20.6]} 1-0

[Event "*** SCC Grand Prix: Titled Tuesday Blitz"]
[Site "Chess.com"]
[Date "2020.07.14"]
[Round "5"]
[White "romulocardoso"]
[Black "snap_man"]
[Result "0-1"]
[WhiteElo "2095"]
[BlackElo "2320"]
[TimeControl "180+1"]
[EndTime "10:55:44 PDT"]
[Termination "snap_man won by resignation"]

1. e4 {[%clk 0:03:00.9]} 1... c6 {[%clk 0:02:59.2]} 2. d4 {[%clk 0:03:00.4]}
2... d5 {[%clk 0:03:00.1]} 3. exd5 {[%clk 0:03:01.3]} 3... cxd5 {[%clk 0:03:00]}
4. c4 {[%clk 0:03:01.9]} 4... Nf6 {[%clk 0:02:59.2]} 5. Nc3 {[%clk 0:03:01.9]}
5... Nc6 {[%clk 0:02:59.1]} 6. Nf3 {[%clk 0:03:02.4]} 6... g6 {[%clk 0:02:59.1]}
7. Bd3 {[%clk 0:03:01]} 7... Bg7 {[%clk 0:02:59.2]} 8. O-O {[%clk 0:03:00.6]}
8... Bg4 {[%clk 0:02:58.4]} 9. Be3 {[%clk 0:03:00.5]} 9... O-O {[%clk
0:02:57.9]} 10. h3 {[%clk 0:03:00.1]} 10... dxc4 {[%clk 0:02:54.5]} 11. Bxc4
{[%clk 0:02:59.3]} 11... Bd7 {[%clk 0:02:49.8]} 12. d5 {[%clk 0:02:58.3]} 12...
Na5 {[%clk 0:02:49.6]} 13. Be2 {[%clk 0:02:56.3]} 13... b6 {[%clk 0:02:47.3]}
14. Bg5 {[%clk 0:02:50]} 14... Nb7 {[%clk 0:02:41.1]} 15. Ne5 {[%clk 0:02:46.4]}
15... Nd6 {[%clk 0:02:38.7]} 16. a4 {[%clk 0:02:30.9]} 16... Nfe4 {[%clk
0:02:27.6]} 17. Nxd7 {[%clk 0:02:30.8]} 17... Qxd7 {[%clk 0:02:08.7]} 18. Bd2
{[%clk 0:02:05.2]} 18... Rac8 {[%clk 0:02:07.9]} 19. Rc1 {[%clk 0:02:02.6]}
19... Nxc3 {[%clk 0:02:02.6]} 20. Bxc3 {[%clk 0:02:01.5]} 20... Bxc3 {[%clk
0:02:01.8]} 21. Rxc3 {[%clk 0:02:02.4]} 21... Rxc3 {[%clk 0:02:00.7]} 22. bxc3
{[%clk 0:02:03.3]} 22... Rc8 {[%clk 0:01:56.6]} 23. Qb3 {[%clk 0:01:58.8]} 23...
Rc5 {[%clk 0:01:55.4]} 24. c4 {[%clk 0:01:55.1]} 24... Qf5 {[%clk 0:01:50.2]}
25. Bd3 {[%clk 0:01:52.9]} 25... Qf6 {[%clk 0:01:50.3]} 26. Re1 {[%clk
0:01:23.1]} 26... Kf8 {[%clk 0:01:48.1]} 27. Re3 {[%clk 0:01:21.5]} 27... Qd4
{[%clk 0:01:45.6]} 28. Qb4 {[%clk 0:01:13.9]} 28... Nxc4 {[%clk 0:01:38.1]} 29.
a5 {[%clk 0:01:12.9]} 29... Qa1+ {[%clk 0:01:25]} 30. Re1 {[%clk 0:01:11.5]}
30... Qxa5 {[%clk 0:01:24.9]} 31. Qxa5 {[%clk 0:01:09.7]} 31... Nxa5 {[%clk
0:01:24.5]} 32. Be4 {[%clk 0:01:06.5]} 32... Nb7 {[%clk 0:01:24]} 33. Bf3 {[%clk
0:01:03.9]} 33... a5 {[%clk 0:01:22.4]} 34. Rb1 {[%clk 0:01:03.8]} 34... b5
{[%clk 0:01:22.6]} 35. Kf1 {[%clk 0:01:01.7]} 35... Nd6 {[%clk 0:01:21.5]} 36.
Ke2 {[%clk 0:01:02]} 36... Ke8 {[%clk 0:01:21.2]} 37. Kd3 {[%clk 0:01:02.3]}
37... Kd7 {[%clk 0:01:21.4]} 38. Kd4 {[%clk 0:01:02.8]} 38... Rc4+ {[%clk
0:01:21.5]} 39. Kd3 {[%clk 0:01:02.7]} 39... b4 {[%clk 0:01:15.8]} 40. Bg4+
{[%clk 0:00:59.6]} 40... Kc7 {[%clk 0:01:12.6]} 41. Re1 {[%clk 0:00:58]} 41...
Rc3+ {[%clk 0:01:12.7]} 42. Kd2 {[%clk 0:00:57.6]} 42... Nc4+ {[%clk 0:01:11.3]}
43. Kd1 {[%clk 0:00:55.1]} 43... Kd6 {[%clk 0:01:11.5]} 44. Bf3 {[%clk
0:00:36.7]} 44... a4 {[%clk 0:01:06.9]} 45. Be2 {[%clk 0:00:36.9]} 45... a3
{[%clk 0:01:06.5]} 46. Bxc4 {[%clk 0:00:36.1]} 46... Rxc4 {[%clk 0:01:06.8]} 47.
Re2 {[%clk 0:00:36.8]} 47... b3 {[%clk 0:01:06.7]} 48. f4 {[%clk 0:00:34.7]}
48... b2 {[%clk 0:01:06.6]} 49. f5 {[%clk 0:00:35.6]} 49... b1=Q+ {[%clk
0:01:06.5]} 0-1

[Event "*** SCC Grand Prix: Titled Tuesday Blitz"]
[Site "Chess.com"]
[Date "2020.07.14"]
[Round "5"]
[White "PrinceMurad09"]
[Black "Ati1517"]
[Result "0-1"]
[WhiteElo "2506"]
[BlackElo "2365"]
[TimeControl "180+1"]
[EndTime "10:55:47 PDT"]
[Termination "Ati1517 won by checkmate"]

1. e4 {[%clk 0:03:00.9]} 1... e5 {[%clk 0:02:59.4]} 2. Nf3 {[%clk 0:03:01.2]}
2... Nc6 {[%clk 0:02:58.2]} 3. Bb5 {[%clk 0:02:59]} 3... a6 {[%clk 0:02:57]} 4.
Ba4 {[%clk 0:02:58.8]} 4... Nf6 {[%clk 0:02:52.5]} 5. d3 {[%clk 0:02:58.2]} 5...
b5 {[%clk 0:02:51.6]} 6. Bb3 {[%clk 0:02:58]} 6... Bc5 {[%clk 0:02:51.9]} 7. O-O
{[%clk 0:02:57.9]} 7... d6 {[%clk 0:02:46.8]} 8. h3 {[%clk 0:02:58]} 8... h6
{[%clk 0:02:05.7]} 9. c3 {[%clk 0:02:56.7]} 9... O-O {[%clk 0:01:55.4]} 10. Nbd2
{[%clk 0:02:56.4]} 10... Be6 {[%clk 0:01:49.8]} 11. Bc2 {[%clk 0:02:54]} 11...
d5 {[%clk 0:01:47.5]} 12. exd5 {[%clk 0:02:51.1]} 12... Bxd5 {[%clk 0:01:42.6]}
13. a4 {[%clk 0:02:51.2]} 13... Rb8 {[%clk 0:01:39.4]} 14. axb5 {[%clk 0:02:50]}
14... axb5 {[%clk 0:01:38.3]} 15. Re1 {[%clk 0:02:47.1]} 15... Re8 {[%clk
0:01:37.1]} 16. Ne4 {[%clk 0:02:43.3]} 16... Bxe4 {[%clk 0:01:36.5]} 17. dxe4
{[%clk 0:02:44.2]} 17... Qe7 {[%clk 0:01:31.7]} 18. Qe2 {[%clk 0:02:41.1]} 18...
b4 {[%clk 0:01:28.4]} 19. Nh4 {[%clk 0:02:28.3]} 19... b3 {[%clk 0:01:26.7]} 20.
Bd3 {[%clk 0:02:27.5]} 20... Nd7 {[%clk 0:01:25.9]} 21. Nf5 {[%clk 0:02:27]}
21... Qf6 {[%clk 0:01:26]} 22. Qg4 {[%clk 0:02:24.3]} 22... Kh8 {[%clk
0:01:23.1]} 23. Qg3 {[%clk 0:02:15]} 23... Nf8 {[%clk 0:01:21.7]} 24. Ne3 {[%clk
0:02:14.2]} 24... Ne7 {[%clk 0:01:17.9]} 25. Ng4 {[%clk 0:02:11]} 25... Qg6
{[%clk 0:01:15.6]} 26. Qxe5 {[%clk 0:02:04]} 26... Bd6 {[%clk 0:01:10.4]} 27.
Qd4 {[%clk 0:01:57.7]} 27... Nf5 {[%clk 0:01:08.6]} 28. Qc4 {[%clk 0:01:43.4]}
28... h5 {[%clk 0:00:58.7]} 29. Ne3 {[%clk 0:01:31.3]} 29... Nxe3 {[%clk
0:00:43.9]} 30. Bxe3 {[%clk 0:01:29.6]} 30... Be5 {[%clk 0:00:39.3]} 31. Ra3
{[%clk 0:01:24.5]} 31... Ne6 {[%clk 0:00:37.9]} 32. Rxb3 {[%clk 0:01:23.3]}
32... Rbd8 {[%clk 0:00:37.2]} 33. Bf1 {[%clk 0:01:21.4]} 33... Bf4 {[%clk
0:00:36.6]} 34. Bd4 {[%clk 0:01:12.3]} 34... Ng5 {[%clk 0:00:33.5]} 35. Kh1
{[%clk 0:01:08.6]} 35... Nxe4 {[%clk 0:00:31.3]} 36. Re2 {[%clk 0:00:43.8]}
36... Nd6 {[%clk 0:00:26.7]} 37. Rxe8+ {[%clk 0:00:42.4]} 37... Rxe8 {[%clk
0:00:26.5]} 38. Qd3 {[%clk 0:00:43]} 38... Qxd3 {[%clk 0:00:26]} 39. Bxd3 {[%clk
0:00:40.2]} 39... Re1+ {[%clk 0:00:25.9]} 40. Bf1 {[%clk 0:00:39.3]} 40... Rxf1#
{[%clk 0:00:25.9]} 0-1

[Event "*** SCC Grand Prix: Titled Tuesday Blitz"]
[Site "Chess.com"]
[Date "2020.07.14"]
[Round "5"]
[White "Harry_Rakkel"]
[Black "KetiGrant"]
[Result "1-0"]
[WhiteElo "2572"]
[BlackElo "2391"]
[TimeControl "180+1"]
[EndTime "10:55:49 PDT"]
[Termination "Harry_Rakkel won by resignation"]

1. e4 {[%clk 0:03:00.9]} 1... c5 {[%clk 0:02:59.3]} 2. Nf3 {[%clk 0:03:00]} 2...
Nc6 {[%clk 0:02:59.8]} 3. d4 {[%clk 0:02:59.5]} 3... cxd4 {[%clk 0:03:00.7]} 4.
Nxd4 {[%clk 0:02:59.5]} 4... e5 {[%clk 0:03:00.8]} 5. Nb5 {[%clk 0:02:58.6]}
5... d6 {[%clk 0:03:00.8]} 6. N1c3 {[%clk 0:02:58.2]} 6... a6 {[%clk 0:03:00.6]}
7. Na3 {[%clk 0:02:57.9]} 7... Be7 {[%clk 0:03:01.5]} 8. Nc4 {[%clk 0:02:55.2]}
8... b5 {[%clk 0:03:00.2]} 9. Ne3 {[%clk 0:02:54.4]} 9... Nf6 {[%clk 0:03:00.8]}
10. g3 {[%clk 0:02:51.3]} 10... O-O {[%clk 0:02:58.2]} 11. Bg2 {[%clk
0:02:50.1]} 11... Rb8 {[%clk 0:02:58.5]} 12. O-O {[%clk 0:02:49]} 12... Nd4
{[%clk 0:02:57.3]} 13. Ncd5 {[%clk 0:02:41.1]} 13... Nxd5 {[%clk 0:02:56]} 14.
Nxd5 {[%clk 0:02:40.5]} 14... Bg5 {[%clk 0:02:54.2]} 15. f4 {[%clk 0:02:29.7]}
15... Bh6 {[%clk 0:02:53.6]} 16. Be3 {[%clk 0:02:25.2]} 16... Ne6 {[%clk
0:02:47.8]} 17. Kh1 {[%clk 0:02:17.6]} 17... Bb7 {[%clk 0:02:44.3]} 18. f5
{[%clk 0:02:13.8]} 18... Bxd5 {[%clk 0:02:10.2]} 19. Bxh6 {[%clk 0:02:10.9]}
19... Bc4 {[%clk 0:01:50.7]} 20. Qg4 {[%clk 0:01:19.8]} 20... Bxf1 {[%clk
0:01:45.2]} 21. Rxf1 {[%clk 0:01:20.7]} 21... Qf6 {[%clk 0:01:42.3]} 22. Bc1
{[%clk 0:01:13.3]} 22... Kh8 {[%clk 0:01:17.3]} 23. fxe6 {[%clk 0:01:09.1]}
23... Qxe6 {[%clk 0:01:16.9]} 24. Qxe6 {[%clk 0:01:02.6]} 24... fxe6 {[%clk
0:01:16.4]} 25. Kg1 {[%clk 0:01:02.2]} 25... Rxf1+ {[%clk 0:01:09.8]} 26. Kxf1
{[%clk 0:01:01.7]} 26... Rc8 {[%clk 0:01:08.2]} 27. c3 {[%clk 0:01:00.8]} 27...
b4 {[%clk 0:01:07.8]} 28. Bd2 {[%clk 0:01:00.5]} 28... a5 {[%clk 0:00:59.4]} 29.
Bh3 {[%clk 0:00:58.4]} 29... Rc4 {[%clk 0:00:51.9]} 30. Bxe6 {[%clk 0:00:55.5]}
30... Rxe4 {[%clk 0:00:51.3]} 31. Bd5 {[%clk 0:00:54.6]} 31... Rg4 {[%clk
0:00:49.5]} 32. Kf2 {[%clk 0:00:51.7]} 32... bxc3 {[%clk 0:00:48.1]} 33. Bxc3
{[%clk 0:00:50.5]} 33... a4 {[%clk 0:00:44.8]} 34. h3 {[%clk 0:00:49.8]} 34...
Rg6 {[%clk 0:00:43.2]} 35. a3 {[%clk 0:00:47.5]} 35... Rf6+ {[%clk 0:00:42.1]}
36. Ke2 {[%clk 0:00:46.6]} 36... g5 {[%clk 0:00:40.6]} 37. Bc6 {[%clk
0:00:45.8]} 37... h5 {[%clk 0:00:32.9]} 38. Bxa4 {[%clk 0:00:44.9]} 38... g4
{[%clk 0:00:32.9]} 39. hxg4 {[%clk 0:00:44.4]} 39... hxg4 {[%clk 0:00:33.8]} 40.
Bc6 {[%clk 0:00:44.2]} 40... Kg7 {[%clk 0:00:32.3]} 41. a4 {[%clk 0:00:44.2]}
41... Kg6 {[%clk 0:00:26.5]} 42. a5 {[%clk 0:00:44]} 42... Rf7 {[%clk
0:00:25.8]} 43. a6 {[%clk 0:00:43.6]} 1-0

[Event "*** SCC Grand Prix: Titled Tuesday Blitz"]
[Site "Chess.com"]
[Date "2020.07.14"]
[Round "5"]
[White "Mr_Sinigami"]
[Black "aa175"]
[Result "1-0"]
[WhiteElo "2570"]
[BlackElo "2389"]
[TimeControl "180+1"]
[EndTime "10:55:49 PDT"]
[Termination "Mr_Sinigami won on time"]

1. d4 {[%clk 0:02:58.2]} 1... e5 {[%clk 0:02:55]} 2. dxe5 {[%clk 0:02:56]} 2...
Nc6 {[%clk 0:02:55.5]} 3. e4 {[%clk 0:02:50.6]} 3... Nxe5 {[%clk 0:02:53.3]} 4.
f4 {[%clk 0:02:50.4]} 4... Ng6 {[%clk 0:02:50.8]} 5. Be3 {[%clk 0:02:45.6]} 5...
Nf6 {[%clk 0:02:40.3]} 6. e5 {[%clk 0:02:43]} 6... Ne4 {[%clk 0:02:37]} 7. Nf3
{[%clk 0:02:32.3]} 7... Bc5 {[%clk 0:02:33.6]} 8. Qd3 {[%clk 0:02:02.4]} 8... d5
{[%clk 0:02:03.2]} 9. Bxc5 {[%clk 0:01:39.9]} 9... Nxc5 {[%clk 0:01:56.4]} 10.
Qb5+ {[%clk 0:01:14.9]} 10... Nd7 {[%clk 0:01:55.4]} 11. f5 {[%clk 0:01:14.5]}
11... Nxe5 {[%clk 0:00:49.9]} 12. Qxd5 {[%clk 0:00:48.1]} 12... Nxf3+ {[%clk
0:00:46.7]} 13. Qxf3 {[%clk 0:00:47.7]} 13... O-O {[%clk 0:00:42.1]} 14. Be2
{[%clk 0:00:46.9]} 14... Ne5 {[%clk 0:00:39.7]} 15. Qf4 {[%clk 0:00:44.7]} 15...
Qd6 {[%clk 0:00:28.9]} 16. O-O {[%clk 0:00:37.9]} 16... Qb6+ {[%clk 0:00:26.7]}
17. Kh1 {[%clk 0:00:37.4]} 17... Qxb2 {[%clk 0:00:25.6]} 18. Nd2 {[%clk
0:00:35.7]} 18... Bd7 {[%clk 0:00:11.1]} 19. f6 {[%clk 0:00:30.9]} 19... Ng6
{[%clk 0:00:11.3]} 20. Qg3 {[%clk 0:00:30.4]} 20... Qxc2 {[%clk 0:00:07.9]} 21.
Rad1 {[%clk 0:00:29.8]} 21... Bc6 {[%clk 0:00:05]} 22. Bd3 {[%clk 0:00:26.9]}
22... Qc3 {[%clk 0:00:02.9]} 23. fxg7 {[%clk 0:00:22.1]} 23... Rfd8 {[%clk
0:00:02.3]} 24. Bxg6 {[%clk 0:00:19.6]} 24... Qxg3 {[%clk 0:00:02.5]} 25. Bxf7+
{[%clk 0:00:19.6]} 25... Kxg7 {[%clk 0:00:01.9]} 26. hxg3 {[%clk 0:00:20]} 1-0